[Event "XXI Torredembarra Open 2019"]
[Site "Torredembarra"]
[Date "2019.07.13"]
[Round "8.6"]
[White "Gil Provedo, Victor"]
[Black "Sirera Bargallo, Tomas"]
[Result "0-1"]
[ECO "C41"]
[WhiteElo "1676"]
[BlackElo "2115"]
[Annotator "NA"]
[PlyCount "106"]
[EventDate "2019.07.06"]
[EventType "swiss"]
[EventCountry "ESP"]
[SourceTitle "playchess.com"]
[Source "ChessBase"]
[SourceQuality "1"]
[TimeControl "5400+30"]

1. e4 {[%emt 0:00:00]} d6 {[%emt 0:00:00]} 2. d4 {[%emt 0:00:17]} Nf6 {[%emt 0:00:00]} 3. Nc3 {[%emt 0:00:12]} Nbd7 {[%emt 0:00:00]} 4. Nf3 {[%emt 0:00:36]} e5 {[%emt 0:00:04]} 5. Bc4 {[%emt 0:00:39]} h6 {[%emt 0:00:42]} 6. O-O {[%emt 0:01:20]} Be7 {[%emt 0:00:21]} 7. Qe2 {[%emt 0:00:38]} c6 {[%emt 0:00:08]} 8. Rd1 {[%emt 0:00:06]} Qc7 {[%emt 0:00:19]} 9. a4 {[%emt 0:01:03]} O-O {[%emt 0:01:52]} 10. a5 {[%emt 0:05:44]} Re8 {[%emt 0:01:21]} 11. h3 {[%emt 0:04:47]} Nf8 {[%emt 0:02:49]} 12. dxe5 {[%emt 0:00:07]} dxe5 {[%emt 0:00:09]} 13. Be3 {[%emt 0:01:26]} Be6 {[%emt 0:01:04]} 14. a6 {[%emt 0:06:47]} b5 {[%emt 0:02:44]} 15. Bd3 {[%emt 0:10:55]} N8d7 {[%emt 0:03:39]} 16. Nd2 {[%emt 0:09:22]} Nc5 {[%emt 0:02:16]} 17. Rf1 {[%emt 0:03:59]} Bd6 {[%emt 0:13:58]} 18. Rad1 {[%emt 0:14:31]} Rad8 {[%emt 0:10:42]} 19. Nf3 {[%emt 0:03:11]} Bc8 {[%emt 0:09:02]} 20. Nh4 {[%emt 0:05:09]} Nxa6 {[%emt 0:09:33]} 21. Nxb5 {[%emt 0:02:54]} cxb5 {[%emt 0:01:23]} 22. Bxb5 {[%emt 0:00:05]} Nb4 {[%emt 0:01:05]} 23. Bxe8 {[%emt 0:00:35]} Rxe8 {[%emt 0:00:11]} 24. c3 {[%emt 0:00:40]} Na6 {[%emt 0:03:40]} 25. Bxa7 {[%emt 0:02:33]} Bc5 {[%emt 0:01:29]} 26. Bxc5 {[%emt 0:00:19]} Nxc5 {[%emt 0:00:06]} 27. f3 {[%emt 0:04:46]} Ba6 {[%emt 0:03:23]} 28. c4 {[%emt 0:00:04]} Nb3 {[%emt 0:01:33]} 29. Nf5 {[%emt 0:02:51]} Qxc4 {[%emt 0:05:36]} 30. Qxc4 {[%emt 0:02:08]} Bxc4 {[%emt 0:00:02]} 31. Rf2 {[%emt 0:02:08]} Be6 {[%emt 0:00:20]} 32. Ne3 {[%emt 0:02:04]} Nd4 {[%emt 0:05:21]} 33. b4 {[%emt 0:00:28]} Rb8 {[%emt 0:00:54]} 34. Rb2 {[%emt 0:00:48]} Nh5 {[%emt 0:02:06]} 35. Nd5 {[%emt 0:02:00]} Bxd5 {[%emt 0:00:39]} 36. exd5 {[%emt 0:00:14]} Nf4 {[%emt 0:02:28]} 37. d6 {[%emt 0:00:13]} Kf8 {[%emt 0:01:45]} 38. Kf2 {[%emt 0:01:24]} Ke8 {[%emt 0:01:05]} 39. h4 {[%emt 0:00:42]} Kd7 {[%emt 0:00:44]} 40. g3 {[%emt 0:00:21]} Nd5 {[%emt 0:01:23]} 41. f4 {[%emt 0:00:36]} f6 {[%emt 0:00:41]} 42. fxe5 {[%emt 0:00:12]} fxe5 {[%emt 0:00:02]} 43. Ra1 {[%emt 0:00:13]} Kxd6 {[%emt 0:00:32]} 44. Ra6+ {[%emt 0:01:12]} Rb6 {[%emt 0:01:14]} 45. Ra7 {[%emt 0:00:18]} Nxb4 {[%emt 0:02:00]} 46. Rd2 {[%emt 0:00:30]} Kd5 {[%emt 0:01:15]} 47. Rxg7 {[%emt 0:00:23]} Rf6+ {[%emt 0:00:22]} 48. Kg2 {[%emt 0:00:28]} Ke4 {[%emt 0:00:16]} 49. Rg4+ {[%emt 0:00:56]} Ke3 {[%emt 0:00:38]} 50. Rb2 {[%emt 0:01:09]} Nd3 {[%emt 0:00:06]} 51. Rb1 {[%emt 0:00:45]} Rf2+ {[%emt 0:00:17]} 52. Kh3 {[%emt 0:00:29]} Nf3 {[%emt 0:00:36]} 53. Rh1 {[%emt 0:00:06]} Rb2 {[%emt 0:00:48]} 0-1

[Event "XXI Torredembarra Open 2019"]
[Site "Torredembarra"]
[Date "2019.07.13"]
[Round "8.7"]
[White "Galimany Rovira, Xavier"]
[Black "Soler Lopez, Hugo"]
[Result "1/2-1/2"]
[ECO "A25"]
[WhiteElo "2086"]
[BlackElo "2072"]
[Annotator "NA"]
[PlyCount "77"]
[EventDate "2019.07.06"]
[EventType "swiss"]
[EventCountry "ESP"]
[SourceTitle "playchess.com"]
[Source "ChessBase"]
[SourceQuality "1"]
[TimeControl "5400+30"]

1. c4 {[%emt 0:00:00]} e5 {[%emt 0:00:56]} 2. g3 {[%emt 0:00:05]} Nc6 {[%emt 0:00:18]} 3. Bg2 {[%emt 0:00:37]} f5 {[%emt 0:00:08]} 4. Nc3 {[%emt 0:01:19]} Nf6 {[%emt 0:01:05]} 5. e3 {[%emt 0:01:14]} d5 {[%emt 0:00:21]} 6. cxd5 {[%emt 0:02:37]} Nb4 {[%emt 0:00:05]} 7. d3 {[%emt 0:00:46]} Nbxd5 {[%emt 0:01:00]} 8. Nge2 {[%emt 0:16:00]} Be6 {[%emt 0:19:08]} 9. O-O {[%emt 0:05:14]} Qd7 {[%emt 0:03:10]} 10. d4 {[%emt 0:04:22]} e4 {[%emt 0:08:47]} 11. f3 {[%emt 0:12:14]} exf3 {[%emt 0:01:22]} 12. Bxf3 {[%emt 0:00:33]} O-O-O {[%emt 0:01:41]} 13. Qa4 {[%emt 0:05:54]} Qxa4 {[%emt 0:11:04]} 14. Nxa4 {[%emt 0:00:06]} Nb4 {[%emt 0:01:33]} 15. Nac3 {[%emt 0:00:58]} c6 {[%emt 0:10:12]} 16. a3 {[%emt 0:02:21]} Nbd5 {[%emt 0:03:42]} 17. Nxd5 {[%emt 0:20:00]} cxd5 {[%emt 0:02:26]} 18. Bd2 {[%emt 0:00:44]} Bd6 {[%emt 0:05:11]} 19. Bb4 {[%emt 0:01:29]} Rhe8 {[%emt 0:01:55]} 20. Bxd6 {[%emt 0:01:51]} Rxd6 {[%emt 0:00:05]} 21. Nc3 {[%emt 0:02:47]} Bf7 {[%emt 0:05:27]} 22. Rac1 {[%emt 0:02:00]} Kd7 {[%emt 0:05:22]} 23. Rfe1 {[%emt 0:03:09]} Rc8 {[%emt 0:05:34]} 24. Kf2 {[%emt 0:04:38]} Rdc6 {[%emt 0:00:55]} 25. Ke2 {[%emt 0:02:12]} a6 {[%emt 0:00:42]} 26. Kd2 {[%emt 0:00:24]} Kd6 {[%emt 0:01:57]} 27. h3 {[%emt 0:01:48]} g5 {[%emt 0:01:17]} 28. Rf1 {[%emt 0:00:22]} h5 {[%emt 0:01:58]} 29. Be2 {[%emt 0:00:41]} Rxc3 {[%emt 0:00:24]} 30. bxc3 {[%emt 0:01:47]} Ne4+ {[%emt 0:00:05]} 31. Ke1 {[%emt 0:00:45]} Nxg3 {[%emt 0:00:06]} 32. Rg1 {[%emt 0:00:42]} h4 {[%emt 0:00:05]} 33. Bd3 {[%emt 0:00:33]} Be6 {[%emt 0:00:25]} 34. Kf2 {[%emt 0:00:35]} g4 {[%emt 0:00:27]} 35. hxg4 {[%emt 0:01:52]} fxg4 {[%emt 0:00:10]} 36. Rxg3 {[%emt 0:02:04]} Rf8+ {[%emt 0:00:36]} 37. Kg2 {[%emt 0:00:31]} hxg3 {[%emt 0:00:17]} 38. Rf1 {[%emt 0:00:35]} Rc8 {[%emt 0:04:24]} 39. Rc1 {[%emt 0:00:14]} 1/2-1/2

[Event "XXI Torredembarra Open 2019"]
[Site "Torredembarra"]
[Date "2019.07.13"]
[Round "8.8"]
[White "Guasch Figuerola, Agusti"]
[Black "Borrellas Comellas, Josep"]
[Result "0-1"]
[ECO "A14"]
[WhiteElo "2071"]
[BlackElo "1935"]
[Annotator "NA"]
[PlyCount "136"]
[EventDate "2019.07.06"]
[EventType "swiss"]
[EventCountry "ESP"]
[SourceTitle "playchess.com"]
[Source "ChessBase"]
[SourceQuality "1"]
[TimeControl "5400+30"]

1. c4 {[%emt 0:00:00]} e6 {[%emt 0:00:00]} 2. g3 {[%emt 0:00:00]} d5 {[%emt 0:00:09]} 3. Nf3 {[%emt 0:00:00]} Nf6 {[%emt 0:01:12]} 4. Bg2 {[%emt 0:00:00]} Be7 {[%emt 0:01:15]} 5. O-O {[%emt 0:00:00]} O-O {[%emt 0:00:13]} 6. b3 {[%emt 0:01:05]} Ne4 {[%emt 0:02:56]} 7. Bb2 {[%emt 0:02:59]} Bf6 {[%emt 0:00:37]} 8. d4 {[%emt 0:01:12]} b6 {[%emt 0:06:37]} 9. Nbd2 {[%emt 0:14:29]} Nd6 {[%emt 0:18:51]} 10. Ne5 {[%emt 0:03:35]} Bb7 {[%emt 0:00:47]} 11. Rc1 {[%emt 0:11:59]} dxc4 {[%emt 0:06:44]} 12. Bxb7 {[%emt 0:00:53]} Nxb7 {[%emt 0:00:45]} 13. Ndxc4 {[%emt 0:00:44]} Re8 {[%emt 0:05:23]} 14. e3 {[%emt 0:08:20]} Qd5 {[%emt 0:11:04]} 15. Re1 {[%emt 0:02:45]} c5 {[%emt 0:01:16]} 16. e4 {[%emt 0:06:27]} Qd8 {[%emt 0:00:27]} 17. Qf3 {[%emt 0:14:51]} Bxe5 {[%emt 0:10:24]} 18. dxe5 {[%emt 0:01:36]} Qc7 {[%emt 0:01:46]} 19. Rcd1 {[%emt 0:06:58]} Nc6 {[%emt 0:00:33]} 20. Qg4 {[%emt 0:02:42]} Rad8 {[%emt 0:04:22]} 21. Nd6 {[%emt 0:00:18]} Re7 {[%emt 0:02:14]} 22. f4 {[%emt 0:03:07]} Red7 {[%emt 0:07:45]} 23. f5 {[%emt 0:02:45]} exf5 {[%emt 0:02:42]} 24. exf5 {[%emt 0:00:17]} Nd4 {[%emt 0:02:24]} 25. Bxd4 {[%emt 0:02:37]} cxd4 {[%emt 0:00:20]} 26. f6 {[%emt 0:01:49]} g6 {[%emt 0:00:43]} 27. Nxb7 {[%emt 0:04:03]} Qxb7 {[%emt 0:00:25]} 28. e6 {[%emt 0:00:06]} fxe6 {[%emt 0:00:54]} 29. Rxe6 {[%emt 0:01:15]} Qd5 {[%emt 0:01:29]} 30. Rde1 {[%emt 0:00:48]} d3 {[%emt 0:00:35]} 31. Re7 {[%emt 0:04:31]} Qd4+ {[%emt 0:02:21]} 32. Qxd4 {[%emt 0:00:03]} Rxd4 {[%emt 0:00:18]} 33. Rg7+ {[%emt 0:01:08]} Kf8 {[%emt 0:03:31]} 34. Rxh7 {[%emt 0:00:17]} d2 {[%emt 0:01:30]} 35. Rd1 {[%emt 0:00:39]} R8d6 {[%emt 0:00:45]} 36. Rh4 {[%emt 0:01:11]} Rxh4 {[%emt 0:01:04]} 37. gxh4 {[%emt 0:00:03]} Kf7 {[%emt 0:00:07]} 38. Kf2 {[%emt 0:00:18]} Kxf6 {[%emt 0:00:04]} 39. Ke2 {[%emt 0:00:11]} Kf5 {[%emt 0:00:23]} 40. Rf1+ {[%emt 0:01:42]} Kg4 {[%emt 0:00:26]} 41. Kd1 {[%emt 0:00:21]} Kxh4 {[%emt 0:00:22]} 42. Rf7 {[%emt 0:00:18]} a5 {[%emt 0:00:54]} 43. Rf3 {[%emt 0:01:36]} g5 {[%emt 0:00:22]} 44. a3 {[%emt 0:00:08]} Rd5 {[%emt 0:00:54]} 45. Rg3 {[%emt 0:00:11]} g4 {[%emt 0:00:21]} 46. b4 {[%emt 0:00:34]} axb4 {[%emt 0:00:17]} 47. axb4 {[%emt 0:00:05]} Rd4 {[%emt 0:00:37]} 48. Rb3 {[%emt 0:00:10]} b5 {[%emt 0:00:20]} 49. Re3 {[%emt 0:02:44]} Rxb4 {[%emt 0:01:00]} 50. Re8 {[%emt 0:00:30]} Rd4 {[%emt 0:00:25]} 51. Rh8+ {[%emt 0:00:04]} Kg5 {[%emt 0:00:24]} 52. Rg8+ {[%emt 0:00:05]} Kf4 {[%emt 0:00:18]} 53. Rf8+ {[%emt 0:00:21]} Ke3 {[%emt 0:00:19]} 54. Rg8 {[%emt 0:01:11]} Kf3 {[%emt 0:00:30]} 55. Rg5 {[%emt 0:00:06]} b4 {[%emt 0:00:16]} 56. Re5 {[%emt 0:00:02]} b3 {[%emt 0:00:54]} 57. Rb5 {[%emt 0:00:12]} Rd3 {[%emt 0:00:18]} 58. Rb4 {[%emt 0:00:14]} Kg2 {[%emt 0:01:34]} 59. Rxg4+ {[%emt 0:00:08]} Kxh2 {[%emt 0:00:15]} 60. Rb4 {[%emt 0:00:33]} Kg2 {[%emt 0:00:22]} 61. Rb8 {[%emt 0:00:08]} Kf3 {[%emt 0:00:15]} 62. Rf8+ {[%emt 0:00:17]} Ke4 {[%emt 0:00:15]} 63. Re8+ {[%emt 0:00:04]} Kf5 {[%emt 0:00:13]} 64. Rf8+ {[%emt 0:00:04]} Ke6 {[%emt 0:00:12]} 65. Re8+ {[%emt 0:00:18]} Kd7 {[%emt 0:00:15]} 66. Rb8 {[%emt 0:00:45]} Kc7 {[%emt 0:00:13]} 67. Ra8 {[%emt 0:00:39]} b2 {[%emt 0:00:57]} 68. Ra7+ {[%emt 0:00:01]} Kb8 {[%emt 0:00:52]} 0-1

[Event "XXI Torredembarra Open 2019"]
[Site "Torredembarra"]
[Date "2019.07.13"]
[Round "8.9"]
[White "Valls Sole, Josep"]
[Black "Fernandez Alonso, Miguel Angel"]
[Result "0-1"]
[ECO "B22"]
[WhiteElo "1797"]
[BlackElo "2060"]
[Annotator "NA"]
[PlyCount "73"]
[EventDate "2019.07.06"]
[EventType "swiss"]
[EventCountry "ESP"]
[SourceTitle "playchess.com"]
[Source "ChessBase"]
[SourceQuality "1"]
[TimeControl "5400+30"]

1. e4 {[%emt 0:00:00]} c5 {[%emt 0:00:15]} 2. Nf3 {[%emt 0:00:00]} Nc6 {[%emt 0:00:07]} 3. c3 {[%emt 0:00:00]} Nf6 {[%emt 0:00:17]} 4. Qc2 {[%emt 0:00:34]} e5 {[%emt 0:00:29]} 5. Bb5 {[%emt 0:00:11]} d6 {[%emt 0:00:07]} 6. O-O {[%emt 0:00:11]} Be7 {[%emt 0:00:32]} 7. d4 {[%emt 0:01:28]} cxd4 {[%emt 0:03:16]} 8. cxd4 {[%emt 0:00:12]} Bd7 {[%emt 0:01:15]} 9. d5 {[%emt 0:06:09]} Nb8 {[%emt 0:00:09]} 10. Nc3 {[%emt 0:02:41]} O-O {[%emt 0:00:20]} 11. Be2 {[%emt 0:02:57]} Na6 {[%emt 0:01:29]} 12. Re1 {[%emt 0:08:15]} Rc8 {[%emt 0:00:17]} 13. Bxa6 {[%emt 0:00:09]} bxa6 {[%emt 0:00:10]} 14. Qe2 {[%emt 0:00:17]} Qa5 {[%emt 0:01:05]} 15. Bd2 {[%emt 0:03:44]} Qb6 {[%emt 0:01:53]} 16. Be3 {[%emt 0:00:16]} Qb7 {[%emt 0:00:20]} 17. Rec1 {[%emt 0:17:48]} h6 {[%emt 0:00:37]} 18. h3 {[%emt 0:01:18]} Bd8 {[%emt 0:00:21]} 19. Rc2 {[%emt 0:05:01]} Ba5 {[%emt 0:01:19]} 20. Qd3 {[%emt 0:09:38]} Rc7 {[%emt 0:01:52]} 21. Nd2 {[%emt 0:04:09]} Rfc8 {[%emt 0:03:50]} 22. Rac1 {[%emt 0:00:30]} Bb6 {[%emt 0:18:52]} 23. Nd1 {[%emt 0:03:25]} Bb5 {[%emt 0:03:10]} 24. Qb3 {[%emt 0:00:09]} Ba5 {[%emt 0:08:14]} 25. Nc3 {[%emt 0:02:46]} Bd3 {[%emt 0:00:38]} 26. Qa4 {[%emt 0:04:19]} Bb6 {[%emt 0:01:04]} 27. Qb4 {[%emt 0:02:55]} Ne8 {[%emt 0:00:30]} 28. a4 {[%emt 0:00:54]} Bxe3 {[%emt 0:00:50]} 29. Qxb7 {[%emt 0:00:09]} Bxf2+ {[%emt 0:00:19]} 30. Kxf2 {[%emt 0:00:02]} Rxb7 {[%emt 0:00:16]} 31. Ke3 {[%emt 0:00:10]} Bxc2 {[%emt 0:00:19]} 32. Rxc2 {[%emt 0:00:01]} g6 {[%emt 0:01:09]} 33. Kd3 {[%emt 0:00:33]} f5 {[%emt 0:00:12]} 34. Nc4 {[%emt 0:01:31]} Rb4 {[%emt 0:00:25]} 35. Na5 {[%emt 0:01:54]} Rd4+ {[%emt 0:00:37]} 36. Ke3 {[%emt 0:00:16]} Rxe4+ {[%emt 0:00:15]} 37. Kf3 {[%emt 0:00:21]} 0-1

[Event "XXI Torredembarra Open 2019"]
[Site "Torredembarra"]
[Date "2019.07.14"]
[Round "9.1"]
[White "Farran Martos, Francesc X."]
[Black "Iagar, Razvan-Gabriel"]
[Result "1-0"]
[ECO "C14"]
[WhiteElo "2432"]
[BlackElo "2138"]
[Annotator "ChessBase"]
[PlyCount "37"]
[EventDate "2019.07.06"]
[EventType "swiss"]
[EventCountry "ESP"]
[SourceTitle "playchess.com"]
[Source "ChessBase"]
[SourceQuality "1"]
[TimeControl "5400+30"]

1. e4 {[%emt 0:00:00]} e6 {[%emt 0:00:00]} 2. d4 {[%emt 0:00:33]} d5 {[%emt 0:00:00]} 3. Nc3 {[%emt 0:00:30]} Nf6 {[%emt 0:00:00]} 4. Bg5 {[%emt 0:01:27]} Be7 {[%emt 0:00:00]} 5. e5 {[%emt 0:00:56]} Nfd7 {[%emt 0:00:02]} 6. h4 {[%emt 0:00:18]} O-O {[%emt 0:00:23]} 7. Qg4 {[%emt 0:01:48]} f5 {[%emt 0:00:43]} 8. Bxe7 {[%emt 0:00:51]} Qxe7 {[%emt 0:00:14]} 9. Qg5 {[%emt 0:00:11]} Qf7 {[%emt 0:00:45]} 10. Nge2 {[%emt 0:05:08]} a6 {[%emt 0:00:37]} 11. Nf4 {[%emt 0:02:36]} c5 {[%emt 0:02:17]} 12. O-O-O {[%emt 0:02:05]} cxd4 {[%emt 0:01:59]} 13. Ncxd5 {[%emt 0:00:47]} Nxe5 {[%emt 0:01:25]} 14. Ne7+ {[%emt 0:04:13]} Kh8 {[%emt 0:00:06]} 15. h5 {[%emt 0:00:21]} Qf6 {[%emt 0:04:02]} 16. Qxf6 {[%emt 0:15:46]} gxf6 {[%emt 0:00:26]} 17. Nfg6+ {[%emt 0:00:07]} Nxg6 {[%emt 0:00:59]} 18. hxg6 {[%emt 0:00:10]} Kg7 {[%emt 0:07:02]} 19. Rxh7# {[%emt 0:00:15]} 1-0

[Event "XXI Torredembarra Open 2019"]
[Site "Torredembarra"]
[Date "2019.07.14"]
[Round "9.2"]
[White "Pogorelov, Ruslan"]
[Black "Dardha, Daniel"]
[Result "1-0"]
[ECO "A41"]
[WhiteElo "2347"]
[BlackElo "2420"]
[Annotator "ChessBase"]
[PlyCount "91"]
[EventDate "2019.07.06"]
[EventType "swiss"]
[EventCountry "ESP"]
[SourceTitle "playchess.com"]
[Source "ChessBase"]
[SourceQuality "1"]
[TimeControl "5400+30"]

1. Nf3 {[%emt 0:00:00]} d6 {[%emt 0:04:49]} 2. d4 {[%emt 0:00:00]} Bg4 {[%emt 0:00:06]} 3. c4 {[%emt 0:00:00]} Bxf3 {[%emt 0:00:11]} 4. exf3 {[%emt 0:00:03]} c6 {[%emt 0:00:04]} 5. Nc3 {[%emt 0:00:32]} g6 {[%emt 0:00:21]} 6. Be3 {[%emt 0:01:01]} Bg7 {[%emt 0:00:43]} 7. Qd2 {[%emt 0:02:50]} Nf6 {[%emt 0:08:35]} 8. Be2 {[%emt 0:01:55]} d5 {[%emt 0:00:26]} 9. g4 {[%emt 0:05:43]} h5 {[%emt 0:10:20]} 10. g5 {[%emt 0:00:29]} Ng8 {[%emt 0:00:11]} 11. cxd5 {[%emt 0:09:49]} cxd5 {[%emt 0:00:10]} 12. Qc2 {[%emt 0:04:00]} Nc6 {[%emt 0:01:54]} 13. Qb3 {[%emt 0:02:17]} e6 {[%emt 0:01:15]} 14. Qxb7 {[%emt 0:01:24]} Nge7 {[%emt 0:00:09]} 15. Bb5 {[%emt 0:02:59]} Rc8 {[%emt 0:01:04]} 16. Bxc6+ {[%emt 0:10:25]} Nxc6 {[%emt 0:03:17]} 17. Rd1 {[%emt 0:03:50]} O-O {[%emt 0:05:58]} 18. O-O {[%emt 0:00:23]} Rc7 {[%emt 0:09:57]} 19. Qa6 {[%emt 0:02:15]} Ne7 {[%emt 0:05:59]} 20. Qd3 {[%emt 0:01:15]} Nf5 {[%emt 0:01:09]} 21. f4 {[%emt 0:02:12]} Qb8 {[%emt 0:06:49]} 22. b3 {[%emt 0:13:22]} Rfc8 {[%emt 0:01:47]} 23. Na4 {[%emt 0:00:25]} Bf8 {[%emt 0:02:07]} 24. Rc1 {[%emt 0:05:04]} Rxc1 {[%emt 0:00:31]} 25. Rxc1 {[%emt 0:00:18]} Rxc1+ {[%emt 0:01:25]} 26. Bxc1 {[%emt 0:00:03]} Bg7 {[%emt 0:02:10]} 27. Be3 {[%emt 0:02:57]} Qb4 {[%emt 0:04:59]} 28. Qc3 {[%emt 0:00:59]} Qxc3 {[%emt 0:00:29]} 29. Nxc3 {[%emt 0:00:02]} Bxd4 {[%emt 0:12:48]} 30. Nb5 {[%emt 0:03:51]} Bxe3 {[%emt 0:11:43]} 31. fxe3 {[%emt 0:00:09]} Nxe3 {[%emt 0:00:54]} 32. Nxa7 {[%emt 0:00:29]} d4 {[%emt 0:00:03]} 33. Kf2 {[%emt 0:01:25]} Nd5 {[%emt 0:01:08]} 34. Nb5 {[%emt 0:01:51]} d3 {[%emt 0:01:26]} 35. a4 {[%emt 0:00:36]} Kf8 {[%emt 0:00:14]} 36. a5 {[%emt 0:00:23]} Ke7 {[%emt 0:00:06]} 37. a6 {[%emt 0:00:32]} d2 {[%emt 0:02:35]} 38. Ke2 {[%emt 0:00:50]} Nxf4+ {[%emt 0:00:02]} 39. Kxd2 {[%emt 0:00:41]} Nd5 {[%emt 0:00:02]} 40. a7 {[%emt 0:00:50]} Nb6 {[%emt 0:00:02]} 41. Na3 {[%emt 0:02:27]} Kd7 {[%emt 0:00:55]} 42. Nc4 {[%emt 0:00:24]} Na8 {[%emt 0:00:14]} 43. Kd3 {[%emt 0:01:28]} Kc7 {[%emt 0:00:36]} 44. Ne5 {[%emt 0:00:37]} Kb7 {[%emt 0:00:08]} 45. Nxf7 {[%emt 0:00:30]} Nc7 {[%emt 0:00:48]} 46. Ne5 {[%emt 0:00:17]} 1-0

[Event "XXI Torredembarra Open 2019"]
[Site "Torredembarra"]
[Date "2019.07.14"]
[Round "9.3"]
[White "Djuric, Stefan"]
[Black "Marina De La Torre, Ivan"]
[Result "1-0"]
[ECO "E02"]
[WhiteElo "2368"]
[BlackElo "2041"]
[Annotator "ChessBase"]
[PlyCount "41"]
[EventDate "2019.07.06"]
[EventType "swiss"]
[EventCountry "ESP"]
[SourceTitle "playchess.com"]
[Source "ChessBase"]
[SourceQuality "1"]
[TimeControl "5400+30"]

1. g3 {[%emt 0:14:41]} Nf6 {[%emt 0:01:07]} 2. Bg2 {[%emt 0:00:03]} d5 {[%emt 0:02:32]} 3. Nf3 {[%emt 0:01:23]} e6 {[%emt 0:00:36]} 4. O-O {[%emt 0:00:34]} Be7 {[%emt 0:01:02]} 5. c4 {[%emt 0:05:23]} O-O {[%emt 0:01:53]} 6. Qc2 {[%emt 0:02:14]} c6 {[%emt 0:06:14]} 7. d4 {[%emt 0:00:37]} dxc4 {[%emt 0:02:34]} 8. Qxc4 {[%emt 0:02:10]} Nbd7 {[%emt 0:01:13]} 9. Nc3 {[%emt 0:20:48]} Nd5 {[%emt 0:07:59]} 10. e4 {[%emt 0:01:04]} Nxc3 {[%emt 0:00:11]} 11. bxc3 {[%emt 0:04:40]} Qa5 {[%emt 0:02:46]} 12. e5 {[%emt 0:01:57]} c5 {[%emt 0:03:59]} 13. Bg5 {[%emt 0:07:43]} Nb6 {[%emt 0:05:12]} 14. Qd3 {[%emt 0:03:23]} c4 {[%emt 0:08:59]} 15. Qc2 {[%emt 0:02:20]} Nd5 {[%emt 0:00:24]} 16. Bxe7 {[%emt 0:00:22]} Nxe7 {[%emt 0:00:08]} 17. Ng5 {[%emt 0:00:42]} g6 {[%emt 0:01:41]} 18. Ne4 {[%emt 0:07:22]} Qc7 {[%emt 0:01:50]} 19. Nf6+ {[%emt 0:04:20]} Kg7 {[%emt 0:00:18]} 20. Qa4 {[%emt 0:00:03]} Ng8 {[%emt 0:01:08]} 21. Ne8+ {[%emt 0:01:00]} 1-0

[Event "XXI Torredembarra Open 2019"]
[Site "Torredembarra"]
[Date "2019.07.14"]
[Round "9.4"]
[White "Sirera Bargallo, Tomas"]
[Black "Gonzalez Rodriguez, Jorge A."]
[Result "0-1"]
[ECO "C01"]
[WhiteElo "2115"]
[BlackElo "2201"]
[Annotator "ChessBase"]
[PlyCount "109"]
[EventDate "2019.07.06"]
[EventType "swiss"]
[EventCountry "ESP"]
[SourceTitle "playchess.com"]
[Source "ChessBase"]
[SourceQuality "1"]
[TimeControl "5400+30"]

1. e4 {[%emt 0:00:00]} e6 {[%emt 0:00:00]} 2. d4 {[%emt 0:00:00]} d5 {[%emt 0:00:00]} 3. Bd3 {[%emt 0:00:00]} Nf6 {[%emt 0:00:47]} 4. e5 {[%emt 0:00:16]} Ng8 {[%emt 0:00:01]} 5. f4 {[%emt 0:04:09]} b6 {[%emt 0:00:22]} 6. c3 {[%emt 0:02:38]} Qd7 {[%emt 0:00:01]} 7. Qe2 {[%emt 0:04:18]} a5 {[%emt 0:00:01]} 8. Nf3 {[%emt 0:01:14]} Ba6 {[%emt 0:00:08]} 9. Bxa6 {[%emt 0:01:03]} Nxa6 {[%emt 0:00:30]} 10. a4 {[%emt 0:00:30]} h5 {[%emt 0:00:30]} 11. f5 {[%emt 0:07:13]} exf5 {[%emt 0:05:01]} 12. Ng5 {[%emt 0:02:31]} Be7 {[%emt 0:00:27]} 13. O-O {[%emt 0:00:28]} Bxg5 {[%emt 0:00:28]} 14. Bxg5 {[%emt 0:00:06]} g6 {[%emt 0:07:51]} 15. Nd2 {[%emt 0:05:17]} c6 {[%emt 0:00:05]} 16. Rae1 {[%emt 0:14:17]} Nc7 {[%emt 0:05:35]} 17. Bf6 {[%emt 0:09:08]} Rh6 {[%emt 0:18:10]} 18. e6 {[%emt 0:11:10]} Nxe6 {[%emt 0:00:29]} 19. Bg5 {[%emt 0:00:05]} Rh7 {[%emt 0:16:23]} 20. Nf3 {[%emt 0:00:47]} Rg7 {[%emt 0:00:00]} 21. Qe5 {[%emt 0:20:50]} Kf8 {[%emt 0:00:24]} 22. Bh4 {[%emt 0:04:29]} Re8 {[%emt 0:02:42]} 23. Bg3 {[%emt 0:03:57]} f6 {[%emt 0:01:04]} 24. Qd6+ {[%emt 0:00:52]} Qxd6 {[%emt 0:00:02]} 25. Bxd6+ {[%emt 0:00:06]} Kf7 {[%emt 0:00:13]} 26. Re2 {[%emt 0:02:02]} Ne7 {[%emt 0:00:12]} 27. Rfe1 {[%emt 0:00:50]} Nc8 {[%emt 0:00:06]} 28. Ba3 {[%emt 0:02:12]} Rgg8 {[%emt 0:00:03]} 29. g3 {[%emt 0:00:51]} Nd8 {[%emt 0:03:12]} 30. Rxe8 {[%emt 0:00:53]} Rxe8 {[%emt 0:00:02]} 31. Rxe8 {[%emt 0:00:21]} Kxe8 {[%emt 0:00:02]} 32. Kf2 {[%emt 0:00:25]} Nb7 {[%emt 0:00:40]} 33. Nh4 {[%emt 0:01:38]} Kf7 {[%emt 0:00:02]} 34. Ke3 {[%emt 0:00:22]} Ncd6 {[%emt 0:00:21]} 35. b3 {[%emt 0:00:17]} Ne4 {[%emt 0:01:05]} 36. Bb2 {[%emt 0:00:04]} Nbd6 {[%emt 0:00:12]} 37. Ng2 {[%emt 0:00:47]} g5 {[%emt 0:00:15]} 38. Ne1 {[%emt 0:00:40]} f4+ {[%emt 0:00:41]} 39. gxf4 {[%emt 0:00:22]} Nf5+ {[%emt 0:00:36]} 40. Ke2 {[%emt 0:00:45]} g4 {[%emt 0:00:08]} 41. Nd3 {[%emt 0:01:02]} h4 {[%emt 0:01:11]} 42. Nf2 {[%emt 0:00:40]} Nxf2 {[%emt 0:01:01]} 43. Kxf2 {[%emt 0:00:20]} Nd6 {[%emt 0:00:09]} 44. Ke3 {[%emt 0:00:06]} h3 {[%emt 0:00:25]} 45. Kf2 {[%emt 0:00:21]} Ne4+ {[%emt 0:00:19]} 46. Kg1 {[%emt 0:00:39]} f5 {[%emt 0:01:58]} 47. b4 {[%emt 0:00:23]} Ke6 {[%emt 0:00:05]} 48. Ba1 {[%emt 0:00:35]} Kd6 {[%emt 0:00:33]} 49. Bb2 {[%emt 0:00:22]} Kc7 50. Ba1 {[%emt 0:00:48]} Kb7 {[%emt 0:00:32]} 51. bxa5 {[%emt 0:00:58]} bxa5 {[%emt 0:00:03]} 52. Bb2 {[%emt 0:00:41]} Nd2 {[%emt 0:00:30]} 53. Kf2 {[%emt 0:00:17]} Nc4 {[%emt 0:00:07]} 54. Bc1 {[%emt 0:00:09]} Nb6 {[%emt 0:00:02]} 55. Ke1 {[%emt 0:00:31]} 0-1